bitfinex-derivatives/quotes_ETHF0:USTF0_20250308
["timestamp","ask_amount","ask_price","bid_price","bid_amount"]
[1741403033026,0.00699594,2140.4,2140.3,3.56471]
[1741403034129,0.00699594,2140.4,2140.3,0.93471]
[1741403035930,0.00699594,2140.4,2140.3,3.22471]
[1741403047238,0.00699594,2140.4,2140.3,3.84171]
[1741403049538,0.00699594,2140.4,2140.2,3.2078]
[1741403049939,0.94167594,2140.4,2140.2,4.14255]
[1741403050138,1.3144,2140.3,2140.2,4.14255]
[1741403050929,2.24911,2140.3,2140.2,3.2078]
[1741403051131,1.3144,2140.3,2140.0,1.5963]
[1741403051340,0.93477,2140.2,2140.0,1.7863]
[1741403052339,1.3144,2140.3,2140.0,0.8515]
[1741403052635,2.24912,2140.3,2140.1,0.93479]
[1741403052837,1.3144,2140.3,2140.1,0.93479]
[1741403053035,2.24911,2140.3,2140.1,3.30479]
[1741403053336,2.24911,2140.3,2140.1,2.37]
[1741403053740,1.3144,2140.3,2140.0,0.6615]
[1741403054040,0.93475,2140.2,2140.0,2.8115]
[1741403054949,2.24915,2140.3,2140.0,3.74633]
[1741403055136,0.93476,2140.2,2140.0,3.74633]
[1741403056343,0.93476,2140.2,2140.0,2.8115]
[1741403056532,2.24913,2140.3,2140.0,3.74633]
[1741403056737,1.3144,2140.3,2140.1,0.93476]
[1741403056937,1.3144,2140.3,2140.2,0.93475]
[1741403057142,0.6574,2140.3,2140.2,3.72475]
[1741403057342,0.6574,2140.3,2140.2,2.34]
[1741403057544,0.6574,2140.3,2140.2,3.27475]
[1741403057740,0.6574,2140.3,2140.2,2.34]
[1741403057943,0.6574,2140.3,2140.1,0.93476]
[1741403058144,1.59211,2140.3,2140.0,0.6615]
[1741403058345,0.6574,2140.3,2140.1,0.93477]
[1741403058544,0.6574,2140.3,2140.1,3.69477]
[1741403058745,1.59212,2140.3,2140.1,2.76]
[1741403058945,0.6574,2140.3,2140.1,3.69477]
[1741403059440,0.6574,2140.3,2140.1,2.76]
[1741403059642,0.6574,2140.3,2140.1,3.69478]
[1741403061149,1.59211,2140.3,2140.1,3.69478]
[1741403061341,0.6574,2140.3,2140.1,2.76]
[1741403061538,4.14255,2140.2,2140.1,2.76]
[1741403061846,4.14255,2140.2,2139.8,4.464]
[1741403061847,0.93487,2140.0,2139.8,3.2078]
[1741403062047,3.2078,2140.2,2139.8,6.43272]
[1741403062048,0.6082,2139.9,2139.8,6.43272]
[1741403062245,1.58282,2140.1,2139.8,6.43272]
[1741403062444,2.19102,2140.1,2139.9,0.6476]
[1741403062646,1.2562,2140.1,2139.9,8.1776]
[1741403062949,0.93484,2140.0,2139.9,8.1776]
[1741403064649,0.93484,2140.0,2139.9,7.53]
[1741403065351,1.2562,2140.1,2139.9,7.53]
[1741403065747,0.93484,2140.0,2139.9,7.53]
[1741403067250,1.2562,2140.1,2139.9,7.53]
[1741403067445,0.93484,2140.0,2139.9,7.53]
[1741403069253,1.2562,2140.1,2139.9,7.53]
[1741403069551,0.93484,2140.0,2139.9,7.53]
[1741403070448,2.113,2140.0,2139.5,4.14283]
[1741403070653,2.113,2140.0,2139.5,13.64283]
[1741403070654,0.935,2139.7,2139.5,13.64283]
[1741403071047,0.935,2139.7,2139.5,12.7078]
[1741403071455,0.6556,2139.7,2139.6,0.93501]
[1741403071751,0.6556,2139.7,2139.6,5.48501]
[1741403071955,2.113,2140.0,2139.6,4.55]
[1741403072156,0.93488,2139.9,2139.7,2.19916]
[1741403072356,0.93488,2139.9,2139.7,5.78916]
[1741403072559,0.6668,2139.8,2139.7,5.78916]
[1741403075161,1.60172,2139.8,2139.7,3.59]
[1741403076959,3.04785,2140.0,2139.7,3.59]
[1741403077161,3.04785,2140.0,2139.8,1.6029]
[1741403077356,3.04785,2140.0,2139.8,6.8684]
[1741403078058,0.93488,2139.9,2139.8,5.9335]
[1741403078250,3.04786,2140.0,2139.8,6.86842]
[1741403080163,2.113,2140.0,2139.8,5.9335]
[1741403080371,3.04786,2140.0,2139.8,6.8684]
[1741403080761,3.04786,2140.0,2139.8,5.9335]
[1741403080762,2.113,2140.0,2139.8,5.9335]
[1741403080963,2.113,2140.0,2139.9,0.93488]
[1741403081261,2.22331,2140.1,2139.9,3.13488]
[1741403081457,2.113,2140.2,2140.0,0.93484]
[1741403081668,2.113,2140.2,2140.0,3.13484]
[1741403081869,2.113,2140.2,2140.1,1.57779]
[1741403082066,2.7179,2140.3,2140.2,0.93475]
[1741403082261,2.7179,2140.3,2140.2,2.19555]
[1741403082470,4.29581,2140.3,2140.2,0.6533]
[1741403084779,4.29581,2140.3,2140.2,1.0533]
[1741403084992,4.29581,2140.3,2140.2,0.6533]
[1741403085174,0.00699594,2140.4,2140.2,1.58802]
[1741403085478,2.11899594,2140.4,2140.3,0.93471]
[1741403085668,2.11899594,2140.4,2140.3,2.04]
[1741403086069,2.11899594,2140.4,2140.2,1.58802]
[1741403086266,2.11899594,2140.4,2140.2,3.59802]
[1741403086465,2.11899594,2140.4,2140.2,0.6533]
[1741403086673,2.11899594,2140.4,2140.2,1.58804]
[1741403086867,3.05368594,2140.4,2140.2,3.89804]
[1741403087274,2.11899594,2140.4,2140.2,2.9633]
[1741403087478,0.00699594,2140.4,2140.3,1.58391]
[1741403087678,0.00699594,2140.4,2140.3,1.61391]
[1741403089083,3.2078,2141.1,2140.3,1.61391]
[1741403089084,1.2204,2140.9,2140.4,2.33666]
[1741403089290,0.93448,2140.9,2140.6,0.93456]
[1741403089577,0.93448,2140.9,2140.7,2.19012]
[1741403089879,0.93444,2140.9,2140.7,2.19012]
[1741403090080,4.26684,2141.0,2140.8,0.604]
[1741403090279,3.3324,2141.0,2140.8,0.604]
[1741403090473,3.3324,2141.0,2140.9,0.93444]
[1741403090474,2.11899594,2141.0,2140.9,0.93444]
[1741403090776,0.00699594,2141.0,2140.9,0.93444]
[1741403090982,0.00699594,2141.0,2140.8,1.53846]
[1741403091181,0.94139594,2141.0,2140.8,0.644]
[1741403091380,0.00699594,2141.0,2140.8,1.57849]
[1741403091878,0.94140594,2141.0,2140.8,1.57849]
[1741403092081,0.94142594,2141.0,2140.8,0.644]
[1741403092478,0.94142594,2141.0,2140.8,1.57848]
[1741403093486,0.00699594,2141.0,2140.8,0.644]
[1741403093681,0.94141594,2141.0,2140.8,1.57847]
[1741403094081,0.93444,2140.9,2140.7,1.2556]
[1741403094277,1.58364,2140.9,2140.7,1.2556]
[1741403094480,0.6492,2140.9,2140.6,0.00699594]
[1741403094782,0.6492,2140.9,2140.6,2.66989594]
[1741403095173,0.63959594,2141.0,2140.9,0.93444]
[1741403095486,0.63959594,2141.0,2140.9,3.29444]
[1741403095874,0.00699594,2141.0,2140.9,2.93444]
[1741403097479,0.00699594,2141.0,2140.9,0.93444]
[1741403097684,0.00699594,2141.0,2140.9,3.25444]
[1741403097881,0.00699594,2141.0,2140.9,3.19444]
[1741403098081,0.00699594,2141.0,2140.9,0.93444]
[1741403098989,0.00699594,2141.0,2140.9,3.10444]
[1741403099289,0.00699594,2141.0,2140.9,3.03444]
[1741403099481,0.00699594,2141.0,2140.9,0.93444]
[1741403099678,0.00699594,2141.0,2140.9,3.26444]
[1741403099887,0.00699594,2141.0,2140.9,0.93444]
[1741403100085,0.00699594,2141.0,2140.9,3.18444]
[1741403100880,0.00699594,2141.0,2140.9,2.25]
[1741403101093,0.94139594,2141.0,2140.9,2.25]
[1741403101290,0.00699594,2141.0,2140.9,2.25]
[1741403102188,0.00699594,2141.0,2140.9,3.18444]
[1741403103392,0.94139594,2141.0,2140.9,2.25]
[1741403104492,0.93446,2140.9,2140.8,0.93448]
[1741403104693,1.57186,2140.9,2140.7,4.1423]
[1741403104906,0.6603,2140.8,2140.7,6.50233]
[1741403106889,1.59479,2140.8,2140.7,5.5678]
[1741403107388,1.59479,2140.8,2140.7,2.36]
[1741403107590,0.6603,2140.8,2140.7,2.36]
[1741403107884,0.93453,2140.7,2140.6,0.00699594]
[1741403108088,6.5968,2140.8,2140.3,3.8646]
[1741403108288,6.5968,2140.8,2140.3,0.04]
[1741403108484,5.9781,2140.8,2140.4,1.2908]
[1741403108691,0.93461,2140.6,2140.4,1.59145]
[1741403108892,0.6544,2140.5,2140.4,1.59145]
[1741403109188,0.93455,2140.7,2140.4,2.9768]
[1741403109495,1.3089,2140.7,2140.5,1.5686]
[1741403109694,2.24346,2140.7,2140.5,1.5686]
[1741403110394,2.24343,2140.7,2140.5,3.78859]
[1741403111188,2.24343,2140.7,2140.5,1.56859]
[1741403111792,2.24343,2140.7,2140.4,0.6568]
[1741403111793,0.93459,2140.6,2140.4,1.59144]
[1741403111989,0.93459,2140.6,2140.4,3.91144]
[1741403112184,2.24345,2140.7,2140.5,0.9346]
[1741403112390,0.93457,2140.6,2140.4,1.59143]
[1741403113093,1.3089,2140.7,2140.4,1.59143]
[1741403113094,1.3089,2140.7,2140.4,2.8468]
[1741403113298,1.3089,2140.7,2140.4,0.6568]
[1741403113591,1.3089,2140.7,2140.4,1.59144]
[1741403113592,0.9346,2140.6,2140.4,1.59144]
[1741403114195,0.93464,2140.5,2140.3,0.93469]
[1741403114394,1.3089,2140.7,2140.3,2.08]
[1741403114899,1.3089,2140.7,2140.6,0.93457]
[1741403115091,1.3089,2140.7,2140.6,2.98457]
[1741403115316,0.6544,2140.7,2140.6,2.98457]
[1741403115599,2.11,2140.8,2140.7,0.93453]
[1741403116100,2.11,2140.8,2140.7,0.6473]
[1741403117790,2.25086,2140.9,2140.8,0.93449]
[1741403117791,1.3164,2140.9,2140.8,0.93449]
[1741403117997,2.11699594,2141.0,2140.7,0.6473]
[1741403118297,0.93447,2140.9,2140.7,1.60181]
[1741403118499,1.27,2140.9,2140.7,1.60181]
[1741403119194,1.27,2140.9,2140.8,0.93449]
[1741403119394,1.27,2140.9,2140.7,1.58181]
[1741403119595,1.27,2140.9,2140.7,1.60181]
[1741403119794,1.27,2140.9,2140.8,0.93449]
[1741403119991,0.6221,2140.9,2140.8,0.93449]
[1741403120392,0.6221,2140.9,2140.8,3.22449]
[1741403120587,0.64649594,2141.0,2140.9,0.93444]
[1741403120790,0.00699594,2141.0,2140.9,1.54074]
[1741403120993,0.00699594,2141.0,2140.9,1.59074]
[1741403123201,0.00699594,2141.0,2140.8,3.2078]
[1741403123503,0.00699594,2141.0,2140.8,3.2478]
[1741403123696,0.93444,2140.9,2140.8,3.2478]
[1741403124001,1.272,2140.9,2140.8,3.2078]
[1741403124202,1.272,2140.9,2140.8,4.14229]
[1741403125501,0.94142594,2141.0,2140.8,4.14229]
[1741403125502,0.00699594,2141.0,2140.8,6.17229]
[1741403125702,0.00699594,2141.0,2140.9,0.93444]
[1741403126016,0.00699594,2141.0,2140.9,3.06444]
[1741403134600,2.108,2141.5,2141.3,0.93423]
[1741403134911,0.93436,2141.1,2141.0,1.2378]
[1741403135209,0.93436,2141.1,2140.9,0.93444]
[1741403135408,1.2968,2141.0,2140.9,0.93444]
[1741403136208,1.2968,2141.0,2140.8,3.82459594]
[1741403136412,0.00699594,2141.2,2140.8,5.91459594]
[1741403137004,0.00699594,2141.2,2141.1,0.93436]
[1741403137211,0.00699594,2141.2,2141.1,3.02436]
[1741403138313,0.00699594,2141.2,2141.1,0.93436]
[1741403138714,0.00699594,2141.2,2141.1,3.21436]
[1741403139218,0.00699594,2141.2,2141.1,0.93436]
[1741403139419,0.00699594,2141.2,2141.1,2.99436]
[1741403139913,0.00699594,2141.2,2141.1,6.20216]
[1741403140316,0.00699594,2141.2,2141.1,2.99436]
[1741403146318,0.00699594,2141.2,2141.1,6.20216]
[1741403148513,0.00699594,2141.2,2141.1,5.2678]
[1741403148923,0.67609594,2141.2,2141.1,6.20216]
[1741403149125,1.31569594,2141.2,2141.1,6.20216]
[1741403151123,0.00699594,2141.2,2141.1,6.20216]
[1741403161429,0.00699594,2141.2,2141.1,8.11856]
[1741403164337,0.609,2141.5,2141.4,0.93422]
[1741403164537,0.609,2141.5,2141.4,0.94422]
[1741403168744,0.6081,2141.6,2141.5,0.93418]
[1741403168937,0.6081,2141.6,2141.5,1.56558]
[1741403173843,3.21479594,2141.7,2141.6,0.93414]
[1741403174045,3.21479594,2141.7,2141.6,3.92784]
[1741403174239,3.21479594,2141.7,2141.6,1.56784]
[1741403174642,3.21479594,2141.7,2141.6,3.86784]
[1741403175346,0.00699594,2141.7,2141.6,3.86784]
[1741403175543,3.0389,2142.2,2141.6,2.9337]
[1741403175842,1.2479,2142.1,2142.0,0.93393]
[1741403176039,0.93373,2142.6,2142.3,0.93383]
[1741403176238,4.89213,2142.6,2142.1,1.2684]
[1741403176442,4.89213,2142.6,2141.6,4.14191]
[1741403176443,0.93402,2141.9,2141.6,4.14191]
[1741403176749,0.93402,2141.9,2141.6,4.96672]
[1741403177041,1.2479,2141.8,2141.7,0.93409]
[1741403177247,1.2479,2141.8,2141.7,3.83409]
[1741403178240,0.6364,2141.8,2141.7,3.83409]
[1741403178446,0.6364,2141.8,2141.7,4.45769]
[1741403179442,0.6115,2142.0,2141.7,3.5236]
[1741403179636,0.6115,2142.0,2141.9,0.93401]
[1741403179841,0.6115,2142.0,2141.9,2.26]
[1741403180348,0.6115,2142.0,2141.9,3.19401]
[1741403180544,0.6115,2142.0,2141.9,2.26]
[1741403180748,0.6115,2142.0,2141.9,3.19401]
[1741403180950,0.6115,2142.0,2141.9,2.26]
[1741403181248,1.54546,2142.0,2141.9,2.26]
[1741403181447,2.21036,2142.0,2141.9,2.26]
[1741403181845,2.21036,2142.0,2141.9,1.94]
[1741403182048,1.2764,2142.0,2141.6,3.8526]
[1741403182344,0.93405,2141.9,2141.6,4.37193]
[1741403183148,0.93405,2141.8,2141.6,4.37193]
[1741403183349,0.6575,2141.7,2141.6,4.37193]
[1741403183552,1.2691,2141.7,2141.6,4.37193]
[1741403184749,1.2691,2141.7,2141.6,1.16413]
[1741403185949,0.6649,2142.0,2141.6,0.23]
[1741403186155,1.2624,2142.0,2141.9,0.93401]
[1741403186453,1.2624,2142.0,2141.9,3.47401]
[1741403186752,1.2624,2142.0,2141.9,2.38]
[1741403188143,1.2624,2142.0,2141.9,2.21]
[1741403188356,1.2624,2142.0,2141.8,1.60112]
[1741403188651,1.2624,2142.0,2141.9,0.93401]
[1741403189245,1.2624,2142.0,2141.9,2.32]
[1741403189446,1.2624,2142.0,2141.9,3.25401]
[1741403189851,3.03784,2142.3,2142.1,0.93391]
[1741403190051,4.30744,2142.3,2142.1,3.12391]
[1741403190449,3.3736,2142.3,2142.1,2.19]
[1741403190646,3.3736,2142.3,2142.1,0.93389]
[1741403190843,3.3736,2142.3,2142.1,2.28]
[1741403191047,3.3736,2142.3,2142.0,0.6645]
[1741403191248,3.3736,2142.3,2142.1,0.9339]
[1741403191448,3.3736,2142.3,2142.1,3.5739]
[1741403191755,3.3736,2142.3,2142.1,3.2639]
[1741403192255,3.3736,2142.3,2142.1,2.33]
[1741403192459,3.3736,2142.3,2142.1,3.26389]
[1741403192652,3.3736,2142.3,2142.2,0.93388]
[1741403192955,4.30744,2142.3,2142.1,0.93391]
[1741403193155,0.93388,2142.2,2142.0,0.6645]
[1741403193358,0.93388,2142.2,2142.0,3.67846]
[1741403193652,0.93388,2142.2,2142.0,3.01396]
[1741403194054,3.3736,2142.3,2142.0,3.01396]
[1741403194055,4.30746,2142.3,2142.0,3.01396]
[1741403194450,4.30746,2142.3,2142.0,3.01394]
[1741403194651,3.3736,2142.3,2142.0,3.01394]
[1741403195061,4.30747,2142.3,2142.0,3.01394]
[1741403195250,3.3736,2142.3,2142.0,2.08]
[1741403195549,6.5814,2142.3,2141.5,5.31879594]
[1741403195754,0.93407,2141.8,2141.6,0.6423]
[1741403196059,0.93407,2141.8,2141.6,0.7923]
[1741403196060,1.2475,2141.7,2141.6,0.7923]
[1741403196247,1.2475,2141.7,2141.6,1.72644]
[1741403196667,1.2475,2141.7,2141.6,2.37044]
[1741403200059,0.93580514,2142.2,2141.8,0.93402]
[1741403200255,0.93580514,2142.2,2141.8,2.61405]
[1741403200256,0.93398,2142.0,2141.8,2.61405]
[1741403200453,0.93398,2142.0,2141.8,1.68]
[1741403200660,0.93398,2142.0,2141.8,2.61405]
[1741403200862,1.2319,2142.1,2141.8,2.61405]
[1741403201160,0.93397,2142.0,2141.8,2.61405]
[1741403201363,1.2319,2142.1,2141.8,2.61405]
[1741403201364,2.16586,2142.1,2141.8,2.61405]
[1741403201555,1.2319,2142.1,2141.8,1.68]
[1741403201755,0.93398,2142.0,2141.8,1.68]
[1741403201955,0.93398,2142.0,2141.8,2.61405]
[1741403202155,0.93398,2142.0,2141.8,0.93405]
[1741403203264,2.16584,2142.1,2141.8,0.93405]
[1741403203459,0.93397,2142.0,2141.8,0.93405]
[1741403204261,1.2319,2142.1,2141.8,0.93405]
[1741403204462,1.2319,2142.1,2141.7,0.6662]
[1741403204663,1.2319,2142.1,2142.0,0.93396]
[1741403204861,5.3108,2142.3,2142.0,0.03]
[1741403205060,6.6258,2142.3,2142.1,0.9339]
[1741403205257,6.6258,2142.3,2142.2,0.6489]
[1741403205455,7.55963,2142.3,2142.2,0.6489]
[1741403207959,4.79553,2142.3,2142.2,0.6489]
[1741403208157,2.103,2142.4,2142.2,0.6489]
[1741403208658,2.103,2142.4,2142.2,1.58275]
[1741403208959,2.103,2142.4,2142.3,0.659]
[1741403209757,2.103,2142.4,2142.3,1.59283]
[1741403210160,0.6537,2142.5,2142.3,1.59283]
[1741403210359,0.6537,2142.5,2142.3,1.5928]
[1741403210558,1.58745,2142.5,2142.3,1.5928]
[1741403210759,0.93379,2142.4,2142.3,0.659]
[1741403210957,0.6537,2142.5,2142.3,0.659]
[1741403211155,0.93379,2142.4,2142.3,0.659]
[1741403211361,0.93379,2142.4,2142.2,0.6489]
[1741403211561,0.93399,2142.0,2141.8,0.6053]
[1741403211760,2.20231,2141.9,2141.7,0.6211]
[1741403211966,2.20231,2141.9,2141.7,0.6611]
[1741403212465,1.2683,2141.9,2141.8,0.93405]
[1741403212765,1.2665,2142.1,2141.9,0.93399]
[1741403212963,1.2665,2142.1,2141.9,0.95399]
[1741403213157,1.2665,2142.1,2141.9,0.02]
[1741403213559,1.2665,2142.1,2141.9,0.95397]
[1741403213560,0.6188,2142.1,2141.9,0.95397]
[1741403214064,0.6188,2142.1,2142.0,0.93396]
[1741403214261,0.6188,2142.1,2141.8,1.2735]
[1741403214461,0.6188,2142.1,2141.8,1.4135]
[1741403214661,0.6188,2142.1,2141.9,0.934]
[1741403214863,0.6188,2142.1,2142.0,0.93396]
[1741403215070,0.6188,2142.1,2141.9,0.93398]
[1741403215368,0.6188,2142.1,2141.9,1.00398]
[1741403215962,0.6188,2142.1,2141.9,0.07]
[1741403216171,0.6188,2142.1,2141.8,1.2735]
[1741403216364,0.6188,2142.1,2142.0,0.93396]
[1741403217971,0.6188,2142.1,2141.8,1.2735]
[1741403218271,0.6188,2142.1,2141.9,0.93399]
[1741403218466,0.6188,2142.1,2141.9,0.08]
[1741403218670,0.6188,2142.1,2142.0,0.93396]
[1741403219969,1.55272,2142.1,2141.9,0.93398]
[1741403220172,0.6188,2142.1,2142.0,0.93396]
[1741403220474,0.6188,2142.1,2141.9,0.93399]
[1741403220673,1.55272,2142.1,2141.9,1.01399]
[1741403220871,0.6188,2142.1,2141.9,1.01399]
[1741403221575,0.6188,2142.1,2141.9,0.08]
[1741403221778,0.6188,2142.1,2141.9,1.01397]
[1741403221973,0.6188,2142.1,2141.9,0.08]
[1741403222173,1.55273,2142.1,2141.9,1.01399]
[1741403222374,2.20693,2142.1,2141.9,1.01399]
[1741403222774,1.273,2142.1,2141.9,1.01399]
[1741403226077,0.93396,2142.0,2141.9,0.08]
[1741403226375,0.93396,2142.0,2141.7,0.6211]
[1741403226692,0.6353,2141.9,2141.7,1.67516]
[1741403227174,0.6353,2141.9,2141.8,0.93405]
[1741403227380,0.6353,2141.9,2141.8,0.96405]
[1741403227679,1.55272,2142.1,2141.9,0.93399]
[1741403227878,0.6188,2142.1,2141.9,1.53979]
[1741403228681,0.6188,2142.1,2142.0,0.93396]
[1741403228875,2.103,2142.2,2142.1,0.93392]
[1741403229189,2.103,2142.2,2142.1,0.6146]
[1741403229480,0.93393,2142.1,2141.8,0.93402]
[1741403229681,1.54663,2142.1,2141.8,0.95402]
[1741403229881,0.6127,2142.1,2141.8,0.02]
[1741403230081,0.6127,2142.1,2142.0,0.93396]
[1741403230879,3.2078,2142.3,2141.7,4.2229]
[1741403231085,3.2078,2142.3,2142.1,0.9339]
[1741403231288,4.14164,2142.3,2142.1,0.9339]
[1741403231787,0.6221,2142.2,2142.0,0.93394]
[1741403231990,0.6221,2142.2,2142.1,0.6369]
[1741403232884,1.55598,2142.2,2142.1,0.6369]
[1741403233092,0.6221,2142.2,2141.7,1.2731]
[1741403233291,0.6327,2142.1,2141.9,0.93399]
[1741403233491,0.6327,2142.1,2141.9,0.96399]
[1741403234790,0.6327,2142.1,2141.9,0.03]
[1741403234986,1.56665,2142.1,2141.9,0.03]
[1741403235686,0.93396,2142.0,2141.9,0.03]
[1741403236087,0.6327,2142.1,2141.9,0.03]
[1741403236295,0.93396,2142.0,2141.9,0.03]
[1741403237793,0.93401,2141.9,2141.8,3.2078]
[1741403238096,1.57471,2141.9,2141.8,3.2978]
[1741403238485,0.6407,2141.9,2141.8,3.2978]
[1741403238692,0.6407,2141.9,2141.8,4.23185]
[1741403239792,0.6407,2141.9,2141.8,3.2978]
[1741403240395,1.57471,2141.9,2141.8,3.2978]
[1741403240696,0.6407,2141.9,2141.8,3.2978]
[1741403240885,0.6407,2141.9,2141.8,4.23185]
[1741403241090,0.6327,2142.1,2141.9,0.93398]
[1741403241289,0.6327,2142.1,2142.0,0.6279]
[1741403241491,0.6327,2142.1,2141.8,3.2078]
[1741403241705,0.93399,2142.0,2141.8,3.2778]
[1741403242094,0.625,2141.9,2141.8,3.2778]
[1741403242293,0.625,2141.9,2141.8,4.21185]
[1741403244101,0.625,2141.9,2141.8,3.2778]
[1741403244302,0.625,2141.9,2141.8,4.21185]
[1741403244793,0.625,2141.9,2141.8,3.2778]
[1741403244994,0.625,2141.9,2141.8,4.21185]
[1741403245699,0.625,2141.9,2141.8,3.2778]
[1741403245899,1.55901,2141.9,2141.8,3.2778]
[1741403246495,0.625,2141.9,2141.8,3.2778]
[1741403246701,1.55901,2141.9,2141.8,3.2778]
[1741403247498,0.625,2141.9,2141.8,3.2778]
[1741403248398,1.55901,2141.9,2141.8,0.07]
[1741403248803,0.625,2141.9,2141.6,0.6279]
[1741403248998,0.93409,2141.7,2141.6,0.6779]
[1741403249400,0.6208,2141.7,2141.6,0.6779]
[1741403250003,0.6208,2141.7,2141.6,1.3035]
[1741403251819,1.55489,2141.7,2141.6,0.6779]
[1741403252110,1.55489,2141.7,2141.6,0.05]
[1741403253011,0.93414,2141.6,2141.5,0.00699594]
[1741403253213,1.56024,2141.6,2141.5,0.03699594]
[1741403259014,0.93436,2141.1,2141.0,0.6481]
[1741403259210,0.93436,2141.1,2141.0,1.3181]
[1741403260115,0.93433,2141.2,2141.0,1.3181]
[1741403260316,0.93433,2141.2,2141.1,0.6652]
[1741403260612,0.93433,2141.2,2141.1,0.6852]
[1741403260810,1.29539594,2141.3,2141.1,0.6852]
[1741403261008,0.00699594,2141.3,2141.1,1.61954]
[1741403261207,0.00699594,2141.3,2141.2,0.93431]
[1741403261407,0.00699594,2141.3,2141.2,4.36211]
[1741403261814,0.00699594,2141.3,2141.2,0.22]
[1741403262913,0.00699594,2141.3,2141.2,1.15431]
[1741403265310,0.00699594,2141.3,2141.2,0.22]
[1741403265613,0.00699594,2141.3,2141.2,1.15431]
[1741403266309,0.94126594,2141.3,2141.2,0.22]
[1741403268210,0.93431,2141.2,2141.1,0.6652]
[1741403268412,2.15941,2141.2,2141.1,0.7052]
[1741403268620,2.15941,2141.2,2141.1,0.6652]
[1741403268917,1.2251,2141.2,2140.8,0.00699594]
[1741403269117,0.93444,2140.9,2140.8,0.45699594]
[1741403269416,0.93444,2140.9,2140.8,0.00699594]
[1741403270012,1.54584,2140.9,2140.8,0.00699594]
[1741403270217,1.54584,2140.9,2140.2,3.2078]
[1741403270218,6.94752,2140.9,2140.2,3.2078]
[1741403270411,6.94752,2140.9,2139.8,11.37519332]
[1741403270412,0.93475,2140.2,2140.1,0.6613]
[1741403270603,3.2078,2140.6,2139.9,1.2965]
[1741403270604,0.93482,2140.1,2139.9,1.2965]
[1741403270810,3.2078,2140.3,2139.9,0.16]
[1741403271006,0.93484,2140.0,2139.9,0.16]
[1741403271409,3.2078,2140.0,2139.7,0.66829594]
[1741403271615,0.93488,2139.9,2139.7,0.79829594]
[1741403271817,1.55198,2139.9,2139.7,0.79829594]
[1741403272012,0.6171,2139.9,2139.7,0.79829594]
[1741403272215,1.55201,2139.9,2139.7,0.79829594]
[1741403273022,2.1,2139.8,2139.7,0.00699594]
[1741403273222,0.93511,2139.4,2139.1,0.93521]
[1741403273525,0.93512,2139.4,2139.1,2.24522]
[1741403273813,0.93519,2139.2,2138.9,5.0598]
[1741403274018,2.1,2139.4,2138.9,5.9398]
[1741403274209,2.1,2139.4,2139.3,0.93514]
[1741403274411,3.2078,2139.6,2139.3,0.03]
[1741403274612,3.2078,2139.6,2139.4,0.93509]
[1741403274814,2.1,2139.7,2139.5,0.93504]
[1741403275016,3.8249,2139.9,2139.7,0.93495]
[1741403275219,2.1,2140.0,2139.8,0.93489]
[1741403275424,4.77215594,2140.2,2139.8,0.93489]
[1741403275725,0.62959594,2140.2,2140.0,0.93483]
[1741403275911,0.00699594,2140.2,2140.1,0.93479]
[1741403276117,0.00699594,2140.2,2140.1,4.84219]
[1741403285828,0.00699594,2140.2,2140.1,3.9074]
[1741403286221,0.00699594,2140.2,2140.1,0.6996]
[1741403286423,0.64419594,2140.2,2140.1,1.63439]
[1741403286748,0.64419594,2140.2,2140.1,0.6996]
[1741403286935,0.64419594,2140.2,2140.1,0.05]
[1741403287230,1.57894594,2140.2,2140.1,0.05]
[1741403287724,0.64419594,2140.2,2140.1,0.05]
[1741403287924,0.64419594,2140.2,2140.1,0.98479]
[1741403288127,0.64419594,2140.2,2140.1,0.05]
[1741403288428,0.64419594,2140.2,2140.1,0.98479]
[1741403288833,0.6398,2140.5,2140.4,0.93466]
[1741403289029,0.6398,2140.5,2140.4,3.20466]
[1741403289433,0.6398,2140.5,2140.4,0.93466]
[1741403289627,0.6398,2140.5,2140.4,3.04466]
[1741403289822,0.6398,2140.5,2140.4,2.85466]
[1741403290233,0.6398,2140.5,2140.4,0.93466]
[1741403290433,0.93467,2140.4,2140.2,0.00701246]
[1741403290637,0.93471,2140.3,2140.2,0.04701246]
[1741403291734,0.93469,2140.4,2140.2,0.04701246]
[1741403292132,0.93471,2140.3,2140.2,0.04701246]
[1741403292332,0.93471,2140.3,2140.2,0.00701246]
[1741403293036,1.57531,2140.3,2140.2,0.00701246]
[1741403294639,3.67531,2140.3,2140.2,0.00701246]
[1741403295841,5.07738,2140.3,2139.5,3.2078]
[1741403296041,0.93496,2139.8,2139.6,0.93499]
[1741403296235,0.614,2139.7,2139.6,1.04499]
[1741403297137,1.54897,2139.7,2139.6,0.11]
[1741403297340,1.54897,2139.7,2139.5,3.2078]
[1741403297637,1.54897,2139.7,2139.5,1.38505]
[1741403297838,1.54897,2139.7,2139.5,0.45]
[1741403298234,0.614,2139.7,2139.5,1.38505]
[1741403298540,1.54897,2139.7,2139.5,0.45]
[1741403298742,0.614,2139.7,2139.5,3.6578]
[1741403298939,0.93501,2139.6,2139.5,0.45]
[1741403299235,0.614,2139.7,2139.5,0.94503]
[1741403299836,0.6215,2139.8,2139.7,0.93497]
[1741403300036,2.1,2139.9,2139.5,3.2078]
[1741403300236,2.1,2139.9,2139.5,5.4478]
[1741403300436,0.6438,2140.0,2139.5,5.4478]